Cogmind - Beta 15 @@@ ROGUE MODE // 2025.09.09 @ 18:17:14 Player: odium reigns Result: Destroyed by D-53 Grenadier with Mini Grenade Launcher Performance ------------- Evolutions (0) 0 Regions Visited (2) 400 Robots Destroyed (20) 100 Value Destroyed (342) 342 Prototype IDs (0) 0 Alien Tech Used (0) 0 Bonus (0) 0 TOTAL SCORE: 842 Bonus ------- None Cogmind --------- Core Integrity 0/250 Matter 282/300 Energy 100/100 System Corruption 0% Temperature Cool (0) Movement Core (700) Ox13 Location -10/Mines Parts ------- > --- POWER (1) -------- (None) > --- PROPULSION (2) --- Aluminum Leg > --- UTILITY (2) ------ High-capacity Storage Unit Improved Terrain Scanner > --- WEAPON (2) ------- Light Assault Rifle > --- INVENTORY (20) --- Light Ion Engine Light Ion Engine Hover Unit Heat Sink Heat Sink Medium Battery (150) Medium Battery (150) Medium Battery (150) Small Matter Pod (50) Medium Matter Pod (100) Hacking Suite Assault Rifle Mining Laser Peak State ------------ > --- POWER ------------ Ion Engine > --- PROPULSION ------- Light Treads Light Treads > --- UTILITY ---------- Small Storage Unit Improved Terrain Scanner > --- WEAPON ----------- EM Pulse Gun EM Pulse Gun > --- INVENTORY -------- Light Ion Engine Aluminum Leg Aluminum Leg Medium Matter Pod Seismic Detector Hacking Suite Light Assault Rifle Mining Laser [Rating: 10] Favorites ----------- Power Ion Engine Engine Ion Engine Propulsion Light Treads Treads Light Treads Leg Aluminum Leg Utility Improved Terrain Scanner Device Improved Terrain Scanner Storage High-capacity Storage Unit Weapon Assault Rifle Energy Gun EM Pulse Gun Ballistic Gun Assault Rifle Build | -11 -10 -10 ------- Run | Yrd Mat Min Slots Evolved . | . . . Power . | . . . Propulsion . | . . . Utility . | . . . Weapon . | . . . Parts Attached 12 | 7 3 2 Power 1 | 1 . . Engine 1 | 1 . . Core . | . . . Reactor . | . . . Propulsion 3 | 2 . 1 Treads 2 | 2 . . Leg 1 | . . 1 Wheel . | . . . Hover . | . . . Flight . | . . . Utility 3 | 2 1 . Device 1 | 1 . . Storage 2 | 1 1 . Processor . | . . . Hackware . | . . . Protection . | . . . Artifact . | . . . Weapon 5 | 2 2 1 Energy Gun 2 | 2 . . Energy Cannon . | . . . Ballistic Gun 3 | . 2 1 Ballistic Cannon . | . . . Launcher . | . . . Special Weapon . | . . . Impact Weapon . | . . . Slashing Weapon . | . . . Piercing Weapon . | . . . Special Melee Weapon . | . . . Unidentified Prototypes . | . . . Parts Lost 5 | . . 5 Power 1 | . . 1 Propulsion 2 | . . 2 Utility . | . . . Weapon 2 | . . 2 Highest Loss Streak 4 | . . 4 To Critical Strikes . | . . . Average Backups 8 | 3 8 13 Power 1 | . 1 1 Propulsion 1 | 1 2 1 Utility 3 | . 2 6 Weapon 2 | 1 2 2 Tool/Special . | . . . Unused Backups 15 | . 3 12 Power 2 | . . 2 Propulsion 2 | . 1 1 Utility 8 | . 1 7 Weapon 3 | . 1 2 Tool/Special . | . . . Average Slot Usage (%) 96 | . 99 88 Engine 13 | . 14 12 Treads 25 | . 27 17 Device 14 | . 14 14 Storage 14 | . 14 14 Energy Gun 10 | . 13 . Ballistic Gun 17 | . 14 27 Peak Build Rating 10 | 9 10 10 Average Rating 8 | 5 9 9 On Entrance 6 | . 9 10 Naked Turns . | . . . Heaviest Build 50 | 15 50 50 Greatest Support 40 | 40 40 40 Greatest Overweight (x) 2 | . 1 2 Average Overweight (x) . | . . 1 Largest Inventory Capacity 20 | 8 20 20 Average Capacity 13 | 6 13 20 Most Carried 15 | 6 12 15 Average Carried 8 | 3 8 13 Final Capacity 20 | 8 20 20 Final Carried 13 | 6 12 13 Class Distribution -------------------- 100% | Mutant Dominant Class ---------------- Mutant | -10/Materials Mutant | -10/Mines Resources | -11 -10 -10 ----------- Run | Yrd Mat Min Matter Collected 575 | 270 250 55 Remotely . | . . . Salvage Created 726 | 133 472 121 Parts 43 | 11 18 14 Haulers Intercepted . | . . . Recyclers Shooed 1 | . 1 . Parts Field Recycled . | . . . Retrieved Matter . | . . . Parts Self-Destructed . | . . . Prevented . | . . . Kills | -11 -10 -10 ------- Run | Yrd Mat Min Combat Hostiles Destroyed 11 | . 7 4 Guns 11 | . 7 4 Classes Destroyed 7 | 2 3 2 Worker 2 | . . 2 Tunneler 3 | 3 . . Recycler 3 | 1 2 . Operator 1 | . 1 . Swarmer 6 | . 3 3 Grunt 4 | . 4 . Demolisher 1 | . . 1 Best Kill Streak 5 | 4 3 5 Combat Bots Only 3 | . 2 3 Max Kills in Single Turn 2 | 2 1 1 Gunslinging . | . . . Exploded . | . . . Melee . | . . . Uniques/NPCs Destroyed . | . . . Combat | -11 -10 -10 -------- Run | Yrd Mat Min Hostile Shots Fired 67 | . 44 23 Missed 12 | . 12 . Hits 55 | . 32 23 Projectile 55 | . 32 23 AOE 11 | . . 11 Damage Taken 955 | 39 349 567 Core 270 | . 61 209 Absorbed by Shields . | . . . Regen/Repaired (Parts) 99 | . 99 . Core Remaining (%) 100 | 100 . . Volleys Fired 58 | 6 39 13 Largest 2 | 2 2 2 Hottest 80 | 80 80 40 Shots Fired 112 | 12 78 22 Gun 112 | 12 78 22 Cannon . | . . . Launcher . | . . . Special . | . . . Kinetic 62 | . 40 22 Thermal . | . . . Explosive . | . . . Electromagnetic 50 | 12 38 . Robot Hit Streak 11 | 3 11 4 Robot Miss Streak 4 | 2 4 3 Penetration Max . | . . . Secondary Targets 1 | . . 1 Max Gunslinging Chain 1 | . . 1 Shots Hit Robots 61 | 7 42 12 Core Hits 30 | 5 17 8 Critical Kills 1 | . . 1 Critical Parts Destroyed . | . . . Critical Strikes 1 | . . 1 Destroy 1 | . . 1 Melee Attacks . | . . . Impact . | . . . Slashing . | . . . Piercing . | . . . Sneak Attacks . | . . . Combat Hostiles . | . . . Follow-up Attacks . | . . . Damage Inflicted 897 | 189 576 132 Guns 814 | 106 576 132 Cannons . | . . . Explosions 83 | 83 . . Melee . | . . . Ramming . | . . . Kinetic 526 | . 394 132 Thermal 83 | 83 . . Explosive . | . . . Electromagnetic 288 | 106 182 . Impact . | . . . Slashing . | . . . Piercing . | . . . Highest Corruption . | . . . Average Corruption . | . . . Corruption Purged . | . . . Corruption Blocked . | . . . Overload Shots . | . . . Overflow Damage . | . . . Projectiles . | . . . Explosions . | . . . Melee . | . . . Knockbacks . | . . . Impact . | . . . Kinetic . | . . . Secondary . | . . . Self-Inflicted Damage 39 | 39 . . Shots 1 | 1 . . Rammed . | . . . Targets Rammed . | . . . Kicked . | . . . Crushed . | . . . Highest Temperature 108 | 72 108 . Average Temperature 38 | 35 38 . Received Heat Transfer 159 | . 159 . Siege Activations . | . . . Martial Activations . | . . . Shielding Activations . | . . . Robots Disrupted . | . . . Combat Hostiles . | . . . Robots Corrupted . | . . . Combat Hostiles . | . . . Parts Fried 3 | 2 1 . Impact Corruptions . | . . . Robots Melted . | . . . Combat Hostiles . | . . . Parts Melted . | . . . Heat Transferred 100 | 100 . . Parts Sabotaged . | . . . Parts Stolen . | . . . Parts Stripped . | . . . Power Chain Reactions 1 | 1 . . Alert | -11 -10 -10 ------- Run | Yrd Mat Min Maximum Alert Level . | . . . Low Security (%) 100 | 100 100 100 Level 1 . | . . . Level 2 . | . . . Level 3 . | . . . Level 4 . | . . . Level 5 . | . . . High Security . | . . . Max Security . | . . . Peak Influence 99 | 15 99 89 Initial 24 | . . 24 Average 37 | 1 42 49 Influence Increases 395 | 20 250 125 Destroy 0b10 Robot/C 220 | . 140 80 Destroy 0b10 Robot/NC 45 | 20 15 10 Destroy Leader 50 | . 30 20 Successful Hack 5 | . 5 . Select Force Hacks 30 | . 30 . Disable Machine 15 | . . 15 Lose Combat Pursuer 30 | . 30 . Influence Decreases 376 | 20 186 170 Entered New Map 40 | . . 40 Time Decay 286 | 20 186 80 Lost Part 50 | . . 50 Squads Dispatched 1 | . 1 . Investigation 1 | . 1 . Extermination . | . . . Reinforcement . | . . . Assault . | . . . Garrison . | . . . Intercept . | . . . Searches Triggered . | . . . Construction Impeded . | . . . Haulers Reinforced . | . . . Active Scanning Responses . | . . . Cargo Convoy Interrupts . | . . . Stealth | -11 -10 -10 --------- Run | Yrd Mat Min Distress Signals 1 | . 1 . Communications Jammed . | . . . Distress Signals . | . . . Times Spotted 19 | . 14 5 Peak Tracking Total 3 | . 3 3 Tactical Retreats 2 | . 2 . Traps | -11 -10 -10 ------- Run | Yrd Mat Min Traps Triggered . | . . . Indirectly . | . . . Trap Hack Attempts . | . . . Triggered . | . . . Disarmed . | . . . Reprogrammed . | . . . Reused . | . . . Traps Extracted . | . . . Installed . | . . . Triggered . | . . . Machines | -11 -10 -10 ---------- Run | Yrd Mat Min Machines Disabled 1 | . . 1 Max in Single Turn 1 | . . 1 Machines Repaired . | . . . Machines Dismantled . | . . . Machines Sabotaged . | . . . Overloaded Fab Kills . | . . . Hacking | -11 -10 -10 --------- Run | Yrd Mat Min Machines Accessed 2 | . 2 . Terminals . | . . . Fabricators . | . . . Repair Stations 1 | . 1 . Recycling Units 1 | . 1 . Scanalyzers . | . . . Garrison Access . | . . . Total Hacks 7 | . 7 . Successful 5 | . 5 . Failed 2 | . 2 . Catastrophic . | . . . Database Lockouts . | . . . Manual 2 | . 2 . Terminals . | . . . Fabricators . | . . . Repair Stations 4 | . 4 . Recycling Units 3 | . 3 . Scanalyzers . | . . . Garrison Access . | . . . Terminal Hacks . | . . . Fabricator Hacks . | . . . Repair Station Hacks 3 | . 3 . Scan Component 2 | . 2 . Repair 1 | . 1 . Recycling Unit Hacks 1 | . 1 . Report Inventory 1 | . 1 . Scanalyzer . | . . . Garrison Access Hacks . | . . . Unauthorized Hacks 1 | . 1 . Terminals . | . . . Fabricators . | . . . Repair Stations . | . . . Recycling Units 1 | . 1 . Tunnel 1 | . 1 . Scanalyzers . | . . . Garrison Access . | . . . Data Cores Recovered 1 | . 1 . Used . | . . . Hacking Detections 1 | . 1 . Full Trace Events 1 | . 1 . Feedback Events . | . . . Feedback Blocked . | . . . Robot Schematics Acquired . | . . . Robots Built . | . . . Authchips . | . . . Time . | . . . Total Robot Build Rating . | . . . Part Schematics Acquired . | . . . Parts Built . | . . . Authchips . | . . . Time . | . . . Total Part Build Rating . | . . . Parts Repaired 1 | . 1 . Time 26 | . 26 . Parts Recycled . | . . . Recycled Matter . | . . . Retrieved Matter . | . . . Retrieved Components . | . . . Parts Scanalyzed . | . . . Part Schematics Acquired . | . . . Parts Damaged . | . . . Bothacking | -11 -10 -10 ------------ Run | Yrd Mat Min Used RIF Installer . | . . . Robots Hacked . | . . . Non-combat . | . . . Combat . | . . . Robot Hacks Applied . | . . . Relay Couplers Released . | . . . Fabnet Peak Effective % . | . . . Robots Rewired . | . . . Allies Hacked . | . . . Hacks Repelled . | . . . Allies | -11 -10 -10 -------- Run | Yrd Mat Min Total Allies . | . . . Largest Group . | . . . Highest-Rated Group . | . . . Highest-Rated Ally . | . . . Total Orders . | . . . Ally Attacks . | . . . Total Damage . | . . . Kills . | . . . Allies Corrupted . | . . . Allies Melted . | . . . Intel | -11 -10 -10 ------- Run | Yrd Mat Min Active Infowar (turns) 714 | 25 528 161 Terrain 714 | 25 528 161 Robot Analysis Total . | . . . Derelict Logs Recovered . | . . . Drone Launches . | . . . Drone Recoveries . | . . . Exploration | -11 -10 -10 ------------- Run | Yrd Mat Min Turns Passed 809 | 120 528 161 Spaces Moved 301 | 57 202 42 Core 4 | 4 . . Treads 297 | 53 202 42 Legs . | . . . Wheels . | . . . Hover . | . . . Flight . | . . . Fastest Speed 50 | 50 160 240 Average Speed 192 | 152 182 291 Slowest Speed 320 | 160 240 320 Overloaded Moves . | . . . Propulsion Burnouts . | . . . Robots Hopped . | . . . Potential Cave-ins . | . . . Cave-ins Triggered . | . . . Exploration Rate (%) 19 | 4 42 13 Regions Visited 2 Branch Regions 1 Pre-discovered Areas 1 | . 1 . Known Exits Taken . | . . . Unknown Exits Taken 2 | 1 1 . Scrap Searched 1 | . . 1 Spaces Dug . | . . . Terrain Destroyed 6 | 6 . . Melee . | . . . Projectile . | . . . AOE 6 | 6 . . Terrain Rammed . | . . . Walls Destroyed . | . . . Machines Disabled . | . . . Actions | -11 -10 -10 --------- Run | Yrd Mat Min Total 420 | 75 285 60 Wait 26 | . 26 . Move 299 | 56 201 42 Hop . | . . . Pick Up 18 | 6 9 3 Fast Attach 10 | 7 3 . Attach 2 | . . 2 Detach . | . . . Swap 1 | . 1 . Drop 6 | . 6 . Fire 58 | 6 39 13 Melee . | . . . Ram . | . . . Kick . | . . . Crush . | . . . Escape Stasis . | . . . Rewire . | . . . Trap . | . . . Miscellaneous . | . . . Route ------- -11/Scrapyard -10/Materials -10/Mines History --------- Turn | Location | Event 10 | -11/Scrapyard | Discovered new exit (range 16) 121 | -11/Scrapyard | Entered Materials 312 | -10/Materials | Build established: Mutant 433 | -10/Materials | Discovered new exit (range 16) 626 | -10/Materials | Repaired Lgt. Treads 649 | -10/Materials | Entered Mines 735 | -10/Mines | Assembled infested the area 805 | -10/Mines | Core integrity fell below 50% 809 | -10/Mines | Core integrity fell below 20% 810 | -10/Mines | Destroyed by D-53 Grenadier with Mini Grenade Launcher Last Messages --------------- 00727_ Acquired Lgt. Ion Engine. 00735_ ALERT: Infestation in the mines, dispatching Demolisher response squad. 00741_ Searching scrap... 00741_ Found Beam Cannon. 00741_ Found Seismic Detector. 00741_ Found Heat Sink. 00741_ Found 53 Matter. 00742_ Acquired 14 matter. 00747_ Acquired Heat Sink. 00790_ The unstable cave ceiling collapses. 00794_ Assault Rifle destroyed. 00796_ Ion Engine destroyed. 00797_ D-53 Grenadier suffers critical hit (Destroy). 00797_ D-53 Grenadier destroyed. 00797_ Switching to secondary target: D-53 Grenadier. 00800_ The unstable cave ceiling collapses. 00804_ Assault Rifle destroyed. 00808_ Lgt. Treads destroyed. 00809_ U-05 Engineer lays Concrete. Map ----- +----------------------------------------------------+ | ?????????????#????#????????????????????#? | | ????????????????????????????#?#########?? | | ???????????????????#??????????# #?? | | ???????????????????#??????#???# #?? | | ????????????????????#?######### #?? | | ???????????#?????????##=%=%[===* """ #?? | | ??????????????????????# =###### """" #?? | | ?????????????#??#???#?# =#??#?# """" #?? | | ??????????????????????# #????# ##? | | ??????????????????????# #??#?#########?? | | ????????????????????#?# #????#?????????? | | ?????????????#???????## ]#??????????????? | | ????????????????#?????# %#?????#?????#??? | | ??????????????????##?## !###????##????#?? | | ????????????????????## #???##??#????#?? | | ????????????????????# #??????##?#????? | | ????????????????????# ###??????#?????? | | ????????????????????## ##?#?????????? | | ?????????????"???????# #?????????#?? | | ?????????????????????# ##?#?##? ?#? | | ?????????????? ??????## ##????# ????? | | ?????????????????????## ##? ???? #? | | ????????????????????## # ?? #?# | | ????????????????????# # #?? | | ????????????????????# #?? | | ??????????????? ????# @ #? | | ????????????????????# < ##? | | ???????????????????## #?? | | ????????????????????## # # ##?? | | ?????????????????????## # ?#?????? | | ????????????????#?????### #??????? | | ?????????????????????#?? # ##??????? | | ???????????????????????? d #??????? | | ???????????????????????? ! ##??????? | | ????????????#???????????# *%% ###???????? | | ?????????????????????????# ! #?????????? | | ?????????????????????????? ?????????? | | ?????????????????????????? ##?????????? | | ??????????????????????????# #??????????? | | ???????????????????#???????u ??????????? | | ???????????????????? ??? ?? ???????????? | | ????????????????????????????????????????? | | ????????????????????????????????????????? | | ????????????????????????????????????????? | | ????????????????????????????????????????? | | ????????????????????????????????????????? | | ????????????????????????????????????????? | | ????????????????????????????????????????? | | ????????????????????????????????????????? | | ????????????????????????????????????????? | +----------------------------------------------------+ Best States ------------- Heat Dissipation 25 Energy Generation 10 Energy Capacity 250 Matter Stores 300 Matter Capacity 300 Sight Range 16 Terrain Scan Range 16 Terrain Scan Density 10 Evasion (%) 40 Recoil Reduction 2 Item Schematics ----------------- None Robot Schematics ------------------ None Fabricated ------------ Nothing Repaired ---------- Lgt. Treads | 29% | -10/Materials Alien Tech Used ----------------- None Achievements -------------- None Challenges ------------ None Game ------ Seed PlexusIonicEngine Manual? 0 Play Time 00:09:06 Cumulative 69.1 hours Start 2025.09.09 @ 17:41:37 End 2025.09.09 @ 18:17:14 Sessions 1 Manual Loads 0 Difficulty Rogue Special Mode None Game No. 51 Rogue 51 Adventurer 0 Explorer 0 Win Type - Total 0 Types 0/0/0/0/0/0/0/0/0/0 Lore% 19 Gallery% 44 Achievement% 36 Wizard Run 0 Options --------- Layout 0 ASCII 0 Keyboard 0 Movement Mouse Keybinds 0 Fullscreen 1 Font 12/Smallcaps Map View 38x28 Zoom Use 99% Tactical HUD 1 Map Filters NONE Filters NONE Steam SD RUN: aa0e1cdf-d5fe-4bd2-b2f9-c2ebefd51df8